fUSD/lending_fUSD_20240426
["ID","MTS","AMOUNT","RATE_DAILY","PERIOD"]
[323606734,1714109432803,-500.0,0.00011343,2]
[323606735,1714109432812,-500.0,0.00011343,2]
[323606736,1714109432822,-504.16512471,0.00011343,2]
[323606737,1714109432831,-500.0,0.00011343,2]
[323606738,1714109432840,-464.42769092,0.00011343,2]
[323606749,1714109438481,-0.00070906,0.00011343,2]
[323606750,1714109438597,-35.57160002,0.00011343,2]
[323606751,1714109438608,-500.0,0.00011343,2]
[323606752,1714109438619,-500.0,0.00011343,2]
[323606753,1714109438631,-500.0,0.00011343,2]
[323606754,1714109438641,-500.0,0.00011343,2]
[323606755,1714109438650,-500.0,0.00011343,2]
[323606756,1714109438659,-500.0,0.00011343,2]
[323606757,1714109438668,-500.0,0.00011343,2]
[323606758,1714109438677,-500.0,0.00011343,2]
[323606759,1714109438687,-500.0,0.00011343,2]
[323606760,1714109438697,-501.99558182,0.00011343,2]
[323606761,1714109438707,-500.0,0.00011343,2]
[323606762,1714109438716,-500.0,0.00011343,2]
[323606763,1714109438726,-199.57368385,0.00011343,2]
[323606764,1714109438735,-500.0,0.00011343,2]
[323606765,1714109438745,-500.0,0.00011343,2]
[323606766,1714109438755,-500.0,0.00011343,2]
[323606767,1714109438764,-500.0,0.00011343,2]
[323606768,1714109438773,-500.0,0.00011343,2]
[323606769,1714109438782,-500.0,0.00011343,2]
[323606770,1714109438792,-500.0,0.00011343,2]
[323606771,1714109438801,-500.0,0.00011343,2]
[323606772,1714109438810,-500.0,0.00011343,2]
[323606773,1714109438819,-500.0,0.00011343,2]
[323606774,1714109438829,-500.0,0.00011343,2]
[323606775,1714109438838,-270.83241293,0.00011343,2]
[323606776,1714109438848,-500.0,0.00011343,2]
[323606777,1714109438857,-333.3579789,0.00011343,2]
[323606778,1714109438866,-500.0,0.00011343,2]
[323606779,1714109438876,-500.0,0.00011343,2]
[323606780,1714109438885,-500.0,0.00011343,2]
[323606781,1714109438895,-500.0,0.00011343,2]
[323606782,1714109438904,-500.0,0.00011343,2]
[323606783,1714109438913,-150.0,0.00011343,2]
[323606784,1714109438922,-376.75281002,0.00011343,2]
[323606785,1714109438932,-500.0,0.00011343,2]
[323606786,1714109438942,-500.0,0.00011343,2]
[323606787,1714109438951,-500.0,0.00011343,2]
[323606788,1714109438960,-500.0,0.00011343,2]
[323606789,1714109438970,-173.9136157,0.00011343,2]
[323606790,1714109438990,-326.0863843,0.00011343,2]
[323606791,1714109439000,-503.97663184,0.00011343,2]
[323606792,1714109439009,-500.0,0.00011343,2]
[323606793,1714109439018,-500.0,0.00011343,2]
[323606794,1714109439027,-500.0,0.00011343,2]
[323606795,1714109439037,-500.0,0.00011343,2]
[323606796,1714109439047,-500.0,0.00011343,2]
[323606797,1714109439057,-528.45,0.00011343,2]
[323606798,1714109439067,-500.0,0.00011343,2]
[323606799,1714109439076,-500.0,0.00011343,2]
[323606800,1714109439085,-505.17273216,0.00011343,2]
[323606801,1714109439095,-500.0,0.00011343,2]
[323606802,1714109439104,-500.0,0.00011343,2]
[323606803,1714109439114,-347.7142517,0.00011343,2]
[323606804,1714109439125,-152.2857483,0.00011343,2]
[323606805,1714109439134,-500.0,0.00011343,2]
[323606806,1714109439144,-500.0,0.00011343,2]
[323606807,1714109439154,-500.0,0.00011343,2]
[323606808,1714109439173,-500.0,0.00011343,2]
[323606809,1714109439183,-500.0,0.00011343,2]
[323606810,1714109439192,-500.0,0.00011343,2]
[323606811,1714109439202,-124.91425167,0.00011343,2]
[323606812,1714109439214,-375.08574833,0.00011343,2]
[323606813,1714109439223,-506.87625847,0.00011343,2]
[323606814,1714109439233,-500.0,0.00011343,2]
[323606815,1714109439242,-500.0,0.00011343,2]
[323606816,1714109439252,-128.69861052,0.00011343,2]
[323606817,1714109439263,-371.30138948,0.00011343,2]
[323606818,1714109439273,-239.46083444,0.00011343,2]
[323606819,1714109439282,-502.44815898,0.00011343,2]
[323606820,1714109439291,-500.0,0.00011343,2]
[323606821,1714109439301,-500.0,0.00011343,2]
[323606822,1714109439310,-500.0,0.00011343,2]
[323606823,1714109439320,-500.0,0.00011343,2]
[323606824,1714109439329,-207.9022419,0.00011343,2]
[323606825,1714109439339,-1466.49,0.00011343,2]
[323606826,1714109439348,-393.1382026,0.00011343,2]
[323606827,1714109439373,-106.8617974,0.00011343,2]
[323606828,1714109439382,-500.0,0.00011343,2]
[323606829,1714109439391,-505.2244803,0.00011343,2]
[323606830,1714109439401,-500.0,0.00011343,2]
[323606831,1714109439410,-500.0,0.00011343,2]
[323606832,1714109439420,-500.0,0.00011343,2]
[323606833,1714109439430,-500.0,0.00011343,2]
[323606834,1714109439439,-500.0,0.00011343,2]
[323606835,1714109439449,-501.96672798,0.00011343,2]
[323606836,1714109439458,-500.0,0.00011343,2]
[323606837,1714109439467,-500.0,0.00011343,2]
[323606838,1714109439477,-275.19600973,0.00011343,2]
[323606839,1714109439486,-500.0,0.00011343,2]
[323606840,1714109439495,-500.0,0.00011343,2]
[323606841,1714109439506,-500.0,0.00011343,2]
[323606842,1714109439515,-501.99109697,0.00011343,2]
[323606843,1714109439524,-500.0,0.00011343,2]
[323606844,1714109439538,-505.10358612,0.00011343,2]
[323606845,1714109439547,-500.0,0.00011343,2]
[323606846,1714109439556,-501.48422026,0.00011343,2]
[323606847,1714109439566,-500.0,0.00011343,2]
[323606848,1714109439577,-500.0,0.00011343,2]
[323606849,1714109439586,-366.99767048,0.00011343,2]
[323606850,1714109439595,-501.80052646,0.00011343,2]
[323606851,1714109439604,-504.10925535,0.00011343,2]
[323606852,1714109439614,-500.0,0.00011343,2]
[323606853,1714109439622,-500.0,0.00011343,2]
[323606854,1714109439632,-500.0,0.00011343,2]
[323606855,1714109439641,-500.0,0.00011343,2]
[323606856,1714109439650,-152.297502,0.00011343,2]
[323606857,1714109439659,-790.48,0.00011343,2]
[323606858,1714109439668,-502.53208375,0.00011343,2]
[323606859,1714109439679,-500.0,0.00011343,2]
[323606860,1714109439689,-500.0,0.00011343,2]
[323606861,1714109439698,-227.60687317,0.00011343,2]
[323606862,1714109439707,-500.84022602,0.00011343,2]
[323606863,1714109439717,-500.0,0.00011343,2]
[323606864,1714109439727,-438.94103108,0.00011343,2]
[323606865,1714109439736,-500.0,0.00011343,2]
[323606866,1714109439745,-500.0,0.00011343,2]
[323606867,1714109439757,-500.0,0.00011343,2]
[323606868,1714109439766,-931.89,0.00011343,2]
[323606869,1714109439775,-502.63898097,0.00011343,2]
[323606870,1714109439784,-500.0,0.00011343,2]
[323606871,1714109439793,-500.0,0.00011343,2]
[323606872,1714109439803,-500.0,0.00011343,2]
[323606873,1714109439812,-500.0,0.00011343,2]
[323606874,1714109439822,-500.0,0.00011343,2]
[323606875,1714109439831,-500.0,0.00011343,2]
[323606876,1714109439840,-500.0,0.00011343,2]
[323606877,1714109439850,-500.0,0.00011343,2]
[323606878,1714109439860,-500.0,0.00011343,2]
[323606879,1714109439873,-500.0,0.00011343,2]
[323606880,1714109439882,-500.0,0.00011343,2]
[323606881,1714109439892,-500.0,0.00011343,2]
[323606882,1714109439901,-500.0,0.00011343,2]
[323606883,1714109439911,-500.0,0.00011343,2]
[323606884,1714109439920,-500.0,0.00011343,2]
[323606885,1714109439930,-500.0,0.00011343,2]
[323606886,1714109439941,-500.0,0.00011343,2]
[323606887,1714109439951,-500.0,0.00011343,2]
[323606888,1714109439961,-644.68,0.00011343,2]
[323606889,1714109439970,-500.57142867,0.00011343,2]
[323606890,1714109439980,-500.0,0.00011343,2]
[323606891,1714109439990,-500.0,0.00011343,2]
[323606892,1714109439999,-500.0,0.00011343,2]
[323606893,1714109440010,-500.0,0.00011343,2]
[323606894,1714109440019,-500.0,0.00011343,2]
[323606895,1714109440028,-500.0,0.00011343,2]
[323606896,1714109440038,-500.0,0.00011343,2]
[323606897,1714109440047,-500.0,0.00011343,2]
[323606898,1714109440057,-500.0,0.00011343,2]
[323606899,1714109440067,-1085.7,0.00011343,2]
[323606900,1714109440077,-500.0,0.00011343,2]
[323606901,1714109440087,-510.28,0.00011343,2]
[323606902,1714109440097,-1420.99,0.00011343,2]
[323606903,1714109440106,-500.0,0.00011343,2]
[323606904,1714109440116,-500.0,0.00011343,2]
[323606905,1714109440125,-501.61124048,0.00011343,2]
[323606906,1714109440135,-500.0,0.00011343,2]
[323606907,1714109440145,-500.0,0.00011343,2]
[323606908,1714109440154,-1061.93,0.00011343,2]
[323606909,1714109440164,-500.0,0.00011343,2]
[323606910,1714109440173,-500.0,0.00011343,2]
[323606911,1714109440182,-500.0,0.00011343,2]
[323606912,1714109440192,-500.0,0.00011343,2]
[323606913,1714109440201,-500.0,0.00011343,2]
[323606914,1714109440211,-500.0,0.00011343,2]
[323606915,1714109440221,-500.0,0.00011343,2]
[323606916,1714109440231,-500.0,0.00011343,2]
[323606917,1714109440241,-500.0,0.00011343,2]
[323606918,1714109440252,-500.0,0.00011343,2]
[323606919,1714109440262,-500.0,0.00011343,2]
[323606920,1714109440271,-500.0,0.00011343,2]
[323606923,1714109440593,-500.0,0.00011343,2]
[323606924,1714109440603,-500.0,0.00011343,2]
[323606925,1714109440614,-500.0,0.00011343,2]
[323606926,1714109440623,-1415.46,0.00011343,2]
[323606927,1714109440634,-508.07850548,0.00011343,2]
[323606928,1714109440645,-500.0,0.00011343,2]
[323606929,1714109440654,-500.0,0.00011343,2]
[323606930,1714109440663,-503.80902002,0.00011343,2]
[323606931,1714109440672,-500.0,0.00011343,2]
[323606932,1714109440682,-500.0,0.00011343,2]
[323606933,1714109440691,-506.71802472,0.00011343,2]
[323606934,1714109440700,-2111.52,0.00011343,2]
[323606935,1714109440709,-502.35711965,0.00011343,2]
[323606936,1714109440719,-500.0,0.00011343,2]
[323606937,1714109440730,-500.0,0.00011343,2]
[323606938,1714109440739,-503.31770367,0.00011343,2]
[323606939,1714109440750,-500.0,0.00011343,2]
[323606940,1714109440760,-500.0,0.00011343,2]
[323606941,1714109440770,-500.0,0.00011343,2]
[323606942,1714109440779,-500.0,0.00011343,2]
[323606943,1714109440788,-500.0,0.00011343,2]
[323606944,1714109440797,-500.0,0.00011343,2]
[323606945,1714109440807,-3295.0,0.00011343,2]
[323606946,1714109440816,-1137.16,0.00011343,2]
[323606947,1714109440825,-500.0,0.00011343,2]
[323606948,1714109440836,-500.0,0.00011343,2]
[323606949,1714109440845,-500.0,0.00011343,2]
[323606950,1714109440854,-1183.12,0.00011343,2]
[323606951,1714109440863,-500.0,0.00011343,2]
[323606952,1714109440872,-500.62665025,0.00011343,2]
[323606953,1714109440881,-500.0,0.00011343,2]
[323606954,1714109440890,-500.0,0.00011343,2]
[323606955,1714109440901,-500.0,0.00011343,2]
[323606956,1714109440910,-504.39702051,0.00011343,2]
[323606957,1714109440919,-673.05,0.00011343,2]
[323606958,1714109440928,-500.0,0.00011343,2]
[323606960,1714109440937,-500.0,0.00011343,2]
[323606962,1714109440947,-500.69550142,0.00011343,2]
[323606963,1714109440956,-500.0,0.00011343,2]
[323606964,1714109440966,-500.0,0.00011343,2]
[323606965,1714109440975,-500.42641418,0.00011343,2]
[323606966,1714109440985,-500.0,0.00011343,2]
[323606967,1714109440994,-500.0,0.00011343,2]
[323606968,1714109441003,-500.0,0.00011343,2]
[323606969,1714109441012,-502.67054059,0.00011343,2]
[323606970,1714109441021,-500.0,0.00011343,2]
[323606971,1714109441030,-500.0,0.00011343,2]
[323606972,1714109441040,-500.0,0.00011343,2]
[323606973,1714109441050,-501.84892442,0.00011343,2]
[323606974,1714109441061,-346.26841891,0.00011343,2]
[323606975,1714109441070,-500.0,0.00011343,2]
[323606976,1714109441079,-898.71,0.00011343,2]
[323606977,1714109441088,-500.0,0.00011343,2]
[323606978,1714109441098,-604.42,0.00011343,2]
[323606979,1714109441108,-500.0,0.00011343,2]
[323606980,1714109441117,-505.83583114,0.00011343,2]
[323606981,1714109441126,-501.33111799,0.00011343,2]
[323606982,1714109441136,-2328.04,0.00011343,2]
[323606983,1714109441146,-500.0,0.00011343,2]
[323606984,1714109441156,-500.0,0.00011343,2]
[323606985,1714109441165,-500.0,0.00011343,2]
[323606986,1714109441174,-500.0,0.00011343,2]
[323606987,1714109441183,-500.0,0.00011343,2]
[323606988,1714109441192,-594.02,0.00011343,2]
[323606989,1714109441202,-500.0,0.00011343,2]
[323606990,1714109441211,-1073.48,0.00011343,2]
[323606991,1714109441220,-500.0,0.00011343,2]
[323606992,1714109441229,-500.0,0.00011343,2]
[323606993,1714109441238,-500.0,0.00011343,2]
[323606994,1714109441247,-500.0,0.00011343,2]
[323606995,1714109441258,-5479.47,0.00011343,2]
[323606996,1714109441267,-500.0,0.00011343,2]
[323606997,1714109441276,-500.0,0.00011343,2]
[323606998,1714109441285,-500.0,0.00011343,2]
[323606999,1714109441294,-500.0,0.00011343,2]
[323607000,1714109441303,-500.0,0.00011343,2]
[323607001,1714109441312,-500.0,0.00011343,2]
[323607002,1714109441321,-502.46286675,0.00011343,2]
[323607003,1714109441330,-500.0,0.00011343,2]
[323607004,1714109441339,-500.0,0.00011343,2]
[323607005,1714109441349,-511.57148767,0.00011343,2]
[323607006,1714109441358,-338.83840148,0.00011343,2]
[323607007,1714109441368,-500.0,0.00011343,2]
[323607008,1714109441378,-2100.05,0.00011343,2]
[323607009,1714109441388,-500.0,0.00011343,2]
[323607010,1714109441399,-500.0,0.00011343,2]
[323607011,1714109441411,-500.0,0.00011343,2]
[323607012,1714109441421,-500.0,0.00011343,2]
[323607013,1714109441432,-500.0,0.00011343,2]
[323607014,1714109441441,-965.98,0.00011343,2]
[323607015,1714109441450,-509.68,0.00011343,2]
[323607016,1714109441459,-500.0,0.00011343,2]
[323607017,1714109441468,-500.0,0.00011343,2]
[323607018,1714109441477,-500.0,0.00011343,2]
[323607019,1714109441487,-500.0,0.00011343,2]
[323607020,1714109441496,-500.0,0.00011343,2]
[323607021,1714109441506,-500.0,0.00011343,2]
[323607022,1714109441515,-500.0,0.00011343,2]
[323607023,1714109441524,-511.78,0.00011343,2]
[323607024,1714109441538,-500.0,0.00011343,2]
[323607025,1714109441547,-624.70803636,0.00011343,2]
[323607026,1714109441557,-500.0,0.00011343,2]
[323607027,1714109441566,-500.0,0.00011343,2]
[323607028,1714109441576,-500.0,0.00011343,2]
[323607029,1714109441586,-500.0,0.00011343,2]
[323607030,1714109441594,-540.52,0.00011343,2]
[323607031,1714109441604,-328.37401379,0.00011343,2]
[323607032,1714109441613,-500.0,0.00011343,2]
[323607033,1714109441622,-500.0,0.00011343,2]
[323607034,1714109441630,-500.0,0.00011343,2]
[323607035,1714109441639,-500.0,0.00011343,2]
[323607036,1714109441649,-622.52,0.00011343,2]
[323607037,1714109441658,-504.69305795,0.00011343,2]
[323607038,1714109441667,-500.0,0.00011343,2]
[323607039,1714109441676,-500.0,0.00011343,2]
[323607040,1714109441685,-500.0,0.00011343,2]
[323607041,1714109441695,-500.0,0.00011343,2]
[323607042,1714109441704,-500.0,0.00011343,2]
[323607043,1714109441713,-1916.64,0.00011343,2]
[323607044,1714109441723,-500.0,0.00011343,2]
[323607045,1714109441732,-500.0,0.00011343,2]
[323607046,1714109441741,-500.0,0.00011343,2]
[323607047,1714109441751,-236713.66875485,0.00011344,2]
[323607048,1714109441761,-1000.0,0.00011344,2]
[323607049,1714109441770,-813.29,0.0001144,2]
[323607050,1714109441779,-500.0,0.00011444,2]
[323607051,1714109441789,-500.0,0.00011444,2]
[323607052,1714109441798,-500.0,0.00011444,2]
[323607053,1714109441807,-500.0,0.00011444,2]
[323607054,1714109441817,-500.0,0.00011444,2]
[323607055,1714109441826,-500.0,0.00011444,2]
[323607056,1714109441836,-500.0,0.00011444,2]
[323607057,1714109441845,-12615.64617632,0.0001145,2]
[323607058,1714109441854,-500.0,0.00011617,2]
[323607059,1714109441863,-500.0,0.00011617,2]
[323607060,1714109441872,-237.46,0.00011617,2]
[323607061,1714109441882,-500.0,0.00011617,2]
[323607062,1714109441892,-500.0,0.00011617,2]
[323607063,1714109441901,-500.0,0.00011617,2]
[323607064,1714109441911,-500.0,0.00011617,2]
[323607065,1714109441920,-500.0,0.00011617,2]
[323607066,1714109441930,-158.16,0.00011617,2]
[323607067,1714109441940,-500.0,0.00011617,2]
[323607068,1714109441950,-500.0,0.00011617,2]
[323607069,1714109441960,-500.0,0.00011617,2]
[323607070,1714109441969,-500.0,0.00011617,2]
[323607071,1714109441979,-500.0,0.00011617,2]
[323607072,1714109441989,-300.61963401,0.00011617,2]
[323607073,1714109441998,-500.0,0.00011617,2]
[323607074,1714109442009,-500.0,0.00011617,2]
[323607075,1714109442018,-500.0,0.00011617,2]
[323607076,1714109442028,-150.0,0.00011617,2]
[323607077,1714109442038,-500.0,0.00011617,2]
[323607078,1714109442048,-500.0,0.00011617,2]
[323607079,1714109442057,-500.0,0.00011617,2]
[323607080,1714109442067,-500.0,0.00011617,2]
[323607081,1714109442076,-500.0,0.00011617,2]
[323607082,1714109442085,-520.11190874,0.00011617,2]
[323607083,1714109442094,-500.0,0.00011617,2]
[323607084,1714109442103,-327.27,0.00011617,2]
[323607085,1714109442114,-500.0,0.00011617,2]
[323607086,1714109442124,-500.0,0.00011617,2]
[323607087,1714109442133,-500.0,0.00011617,2]
[323607088,1714109442143,-409.0,0.00011617,2]
[323607089,1714109442154,-500.0,0.00011617,2]
[323607090,1714109442163,-500.0,0.00011617,2]
[323607091,1714109442173,-500.0,0.00011617,2]
[323607092,1714109442182,-500.0,0.00011617,2]
[323607093,1714109442191,-500.0,0.00011617,2]
[323607094,1714109442201,-500.0,0.00011617,2]
[323607095,1714109442210,-1466.49,0.00011617,2]
[323607096,1714109442219,-500.0,0.00011617,2]
[323607097,1714109442229,-500.0,0.00011617,2]
[323607098,1714109442239,-500.0,0.00011617,2]
[323607099,1714109442250,-500.0,0.00011617,2]
[323607100,1714109442261,-500.0,0.00011617,2]
[323607101,1714109442270,-500.0,0.00011617,2]
[323607102,1714109442279,-500.0,0.00011617,2]
[323607103,1714109442288,-500.0,0.00011617,2]
[323607104,1714109442298,-500.0,0.00011617,2]
[323607105,1714109442307,-790.48,0.00011617,2]
[323607106,1714109442316,-500.0,0.00011617,2]
[323607107,1714109442326,-500.0,0.00011617,2]
[323607108,1714109442335,-500.0,0.00011617,2]
[323607109,1714109442346,-500.0,0.00011617,2]
[323607110,1714109442356,-500.0,0.00011617,2]
[323607111,1714109442365,-931.89,0.00011617,2]
[323607112,1714109442375,-500.0,0.00011617,2]
[323607113,1714109442384,-500.0,0.00011617,2]
[323607114,1714109442393,-500.0,0.00011617,2]
[323607115,1714109442403,-268.25352901,0.00011617,2]
[323607116,1714109442412,-500.0,0.00011617,2]
[323607117,1714109442421,-500.0,0.00011617,2]
[323607118,1714109442431,-644.68,0.00011617,2]
[323607119,1714109442440,-500.0,0.00011617,2]
[323607120,1714109442450,-500.0,0.00011617,2]
[323607121,1714109442459,-500.0,0.00011617,2]
[323607122,1714109442468,-528.4748457,0.00011617,2]
[323607123,1714109442477,-500.0,0.00011617,2]
[323607124,1714109442486,-500.0,0.00011617,2]
[323607125,1714109442496,-500.0,0.00011617,2]
[323607126,1714109442505,-1085.7,0.00011617,2]
[323607127,1714109442515,-510.28,0.00011617,2]
[323607128,1714109442525,-1420.99,0.00011617,2]
[323607129,1714109442539,-500.0,0.00011617,2]
[323607130,1714109442548,-500.0,0.00011617,2]
[323607131,1714109442559,-500.0,0.00011617,2]
[323607132,1714109442570,-1061.93,0.00011617,2]
[323607133,1714109442579,-500.0,0.00011617,2]
[323607134,1714109442589,-500.0,0.00011617,2]
[323607135,1714109442598,-500.0,0.00011617,2]
[323607136,1714109442607,-500.0,0.00011617,2]
[323607137,1714109442617,-500.0,0.00011617,2]
[323607138,1714109442626,-500.0,0.00011617,2]
[323607139,1714109442636,-157.48752869,0.00011617,2]
[323607140,1714109442645,-1415.46,0.00011617,2]
[323607141,1714109442655,-500.0,0.00011617,2]
[323607142,1714109442664,-500.0,0.00011617,2]
[323607143,1714109442674,-500.0,0.00011617,2]
[323607144,1714109442683,-2111.52,0.00011617,2]
[323607145,1714109442692,-500.0,0.00011617,2]
[323607146,1714109442701,-500.0,0.00011617,2]
[323607147,1714109442711,-500.0,0.00011617,2]
[323607148,1714109442721,-500.0,0.00011617,2]
[323607149,1714109442730,-3295.0,0.00011617,2]
[323607150,1714109442739,-1137.16,0.00011617,2]
[323607151,1714109442749,-1183.12,0.00011617,2]
[323607152,1714109442760,-500.0,0.00011617,2]
[323607153,1714109442769,-673.05,0.00011617,2]
[323607154,1714109442779,-500.0,0.00011617,2]
[323607155,1714109442788,-500.0,0.00011617,2]
[323607156,1714109442798,-500.0,0.00011617,2]
[323607157,1714109442807,-25.78547889,0.00011617,2]
[323607158,1714109442824,-474.21452111,0.00011617,2]
[323607159,1714109442833,-500.0,0.00011617,2]
[323607160,1714109442842,-357.0728604,0.00011617,2]
[323607161,1714109442851,-500.0,0.00011617,2]
[323607162,1714109442861,-898.71,0.00011617,2]
[323607163,1714109442870,-500.0,0.00011617,2]
[323607164,1714109442879,-604.42,0.00011617,2]
[323607165,1714109442889,-625.26588897,0.00011617,2]
[323607166,1714109442899,-2328.04,0.00011617,2]
[323607167,1714109442908,-500.0,0.00011617,2]
[323607168,1714109442917,-500.0,0.00011617,2]
[323607169,1714109442928,-500.0,0.00011617,2]
[323607170,1714109442938,-594.02,0.00011617,2]
[323607171,1714109442948,-500.0,0.00011617,2]
[323607172,1714109442957,-1073.48,0.00011617,2]
[323607173,1714109442966,-300.72616225,0.00011617,2]
[323607174,1714109442975,-500.0,0.00011617,2]
[323607175,1714109442985,-5479.47,0.00011617,2]
[323607176,1714109442994,-500.0,0.00011617,2]
[323607177,1714109443004,-500.0,0.00011617,2]
[323607178,1714109443013,-500.0,0.00011617,2]
[323607179,1714109443023,-500.0,0.00011617,2]
[323607180,1714109443033,-500.0,0.00011617,2]
[323607181,1714109443043,-573.82,0.00011617,2]
[323607182,1714109443052,-2100.05,0.00011617,2]
[323607183,1714109443061,-500.0,0.00011617,2]
[323607184,1714109443071,-500.0,0.00011617,2]
[323607185,1714109443080,-500.57,0.00011617,2]
[323607186,1714109443090,-965.98,0.00011617,2]
[323607187,1714109443099,-509.68,0.00011617,2]
[323607188,1714109443108,-500.0,0.00011617,2]
[323607189,1714109443117,-500.0,0.00011617,2]
[323607190,1714109443126,-500.0,0.00011617,2]
[323607192,1714109443136,-500.0,0.00011617,2]
[323607194,1714109443145,-500.0,0.00011617,2]
[323607196,1714109443154,-500.0,0.00011617,2]
[323607198,1714109443163,-500.0,0.00011617,2]
[323607200,1714109443173,-500.0,0.00011617,2]
[323607201,1714109443182,-500.0,0.00011617,2]
[323607202,1714109443191,-622.52,0.00011617,2]
[323607203,1714109443200,-500.0,0.00011617,2]
[323607204,1714109443209,-500.0,0.00011617,2]
[323607205,1714109443218,-500.0,0.00011617,2]
[323607206,1714109443227,-500.0,0.00011617,2]
[323607207,1714109443237,-1916.64,0.00011617,2]
[323607208,1714109443246,-500.0,0.00011617,2]
[323607209,1714109443257,-1000.0,0.00011618,2]
[323607210,1714109443267,-6234.7236,0.00011618,2]
[323607211,1714109443277,-501.04512149,0.00011718,2]
[323607212,1714109443286,-501.6049819,0.00011718,2]
[323607213,1714109443295,-288.3825673,0.00011718,2]
[323607214,1714109443304,-172.14589904,0.00011718,2]
[323607215,1714109443313,-500.0,0.00011718,2]
[323607216,1714109443322,-500.0,0.00011718,2]
[323607217,1714109443331,-500.0,0.00011718,2]
[323607218,1714109443340,-500.0,0.00011718,2]
[323607219,1714109443349,-500.0,0.00011718,2]
[323607220,1714109443358,-500.0,0.00011718,2]
[323607221,1714109443367,-155.15597946,0.00011881,2]
[323607222,1714109443377,-500.0,0.00011891,2]
[323607223,1714109443385,-500.0,0.00011891,2]
[323607224,1714109443395,-500.0,0.00011891,2]
[323607225,1714109443404,-500.0,0.00011891,2]
[323607226,1714109443414,-500.0,0.00011891,2]
[323607227,1714109443423,-500.0,0.00011891,2]
[323607228,1714109443432,-500.0,0.00011891,2]
[323607230,1714109443441,-500.0,0.00011891,2]
[323607231,1714109443450,-500.0,0.00011891,2]
[323607232,1714109443460,-500.0,0.00011891,2]
[323607233,1714109443469,-500.0,0.00011891,2]
[323607234,1714109443478,-500.0,0.00011891,2]
[323607235,1714109443487,-500.0,0.00011891,2]
[323607236,1714109443497,-500.0,0.00011891,2]
[323607237,1714109443509,-500.0,0.00011891,2]
[323607238,1714109443519,-150.0,0.00011891,2]
[323607239,1714109443531,-629.74557544,0.00011891,2]
[323607240,1714109443540,-500.0,0.00011891,2]
[323607241,1714109443550,-500.0,0.00011891,2]
[323607242,1714109443559,-500.0,0.00011891,2]
[323607243,1714109443568,-500.0,0.00011891,2]
[323607244,1714109443578,-500.0,0.00011891,2]
[323607245,1714109443589,-500.0,0.00011891,2]
[323607246,1714109443599,-284.0254726,0.00011891,2]
[323607247,1714109443610,-500.0,0.00011891,2]
[323607248,1714109443619,-500.0,0.00011891,2]
[323607249,1714109443628,-500.0,0.00011891,2]
[323607250,1714109443638,-500.0,0.00011891,2]
[323607251,1714109443647,-500.0,0.00011891,2]
[323607252,1714109443656,-636.79703114,0.00011891,2]
[323607253,1714109443666,-500.0,0.00011891,2]